fUSD/lending_fUSD_20240227
["ID","MTS","AMOUNT","RATE_DAILY","PERIOD"]
[315481763,1709073053121,-500.0,0.00023835,2]
[315481764,1709073053129,-500.0,0.00023835,2]
[315481765,1709073053138,-570.68693235,0.00023835,2]
[315481766,1709073053147,-500.0,0.00023835,2]
[315481767,1709073053156,-500.0,0.00023835,2]
[315481768,1709073053165,-500.0,0.00023835,2]
[315481769,1709073053174,-500.0,0.00023835,2]
[315481770,1709073053183,-500.0,0.00023835,2]
[315481771,1709073053193,-500.0,0.00023835,2]
[315481772,1709073053203,-500.0,0.00023835,2]
[315481773,1709073053214,-500.0,0.00023835,2]
[315481774,1709073053223,-500.0,0.00023835,2]
[315481775,1709073053232,-500.0,0.00023835,2]
[315481776,1709073053241,-500.0,0.00023835,2]
[315481777,1709073053251,-500.0,0.00023835,2]
[315481778,1709073053259,-500.0,0.00023835,2]
[315481779,1709073053268,-500.0,0.00023835,2]
[315481780,1709073053277,-500.0,0.00023835,2]
[315481781,1709073053287,-500.0,0.00023835,2]
[315481782,1709073053296,-500.0,0.00023835,2]
[315481783,1709073053306,-500.0,0.00023835,2]
[315481784,1709073053315,-500.0,0.00023835,2]
[315481785,1709073053324,-500.0,0.00023835,2]
[315481786,1709073053333,-500.0,0.00023835,2]
[315481787,1709073053341,-353.4477096,0.00023835,2]
[315481788,1709073053722,-146.5522904,0.00023835,2]
[315481789,1709073053732,-500.0,0.00023835,2]
[315481790,1709073053741,-196.42991576,0.00023835,2]
[315481791,1709073053990,-464.93484092,0.00022796,2]
[315481792,1709073054001,-94.98715908,0.00022796,2]
[315481793,1709073054011,-166.78,0.00023234,2]
[315481794,1709073054020,-303.57008424,0.00023835,2]
[315481795,1709073054029,-500.0,0.00023835,2]
[315481796,1709073054038,-500.0,0.00023835,2]
[315481797,1709073054048,-197.65329011,0.00023835,2]
[315481798,1709074104988,5905.47900927,0.00023,29]
[315481809,1709074231680,-155.0,0.00016645,2]
[315481810,1709074231692,-212.96,0.00016646,2]
[315481811,1709074231702,-230.8,0.00016712,2]
[315481812,1709074231711,-4728.68920609,0.00019053,2]
[315481813,1709074231721,-1182.44148604,0.00019054,2]
[315481814,1709074231731,-905.75,0.00019058,2]
[315481815,1709074231740,-150.0,0.00020462,2]
[315481816,1709074231750,-520.0,0.00020642,2]
[315481817,1709074231761,-2406.51,0.00020642,2]
[315481818,1709074231770,-250.0,0.00020664,2]
[315481819,1709074231780,-1462.74,0.00020703,2]
[315481820,1709074231790,-160.5643394,0.00020735,2]
[315481821,1709074231800,-2000.0,0.00020743,2]
[315481822,1709074231809,-2827.14,0.0002075,2]
[315481823,1709074231819,-227.32,0.00020771,2]
[315481824,1709074231828,-300.0,0.00020847,2]
[315481825,1709074231838,-150.0,0.00020848,2]
[315481826,1709074231847,-300.0,0.00020848,2]
[315481827,1709074231857,-150.0,0.00020849,2]
[315481828,1709074231866,-3796.05,0.00020849,2]
[315481829,1709074231877,-2577.37,0.00020855,2]
[315481830,1709074231886,-757.8,0.00020855,2]
[315481831,1709074231896,-150.0,0.00020856,2]
[315481832,1709074231906,-480.0,0.00020863,2]
[315481834,1709074231916,-352.6,0.00020894,2]
[315481836,1709074231925,-1609.89,0.00020915,2]
[315481837,1709074231935,-159.89,0.00020917,2]
[315481838,1709074231944,-211.0,0.00020937,2]
[315481839,1709074231957,-250.0,0.00020976,2]
[315481840,1709074231966,-150.0,0.0002101,2]
[315481842,1709074231976,-2256.34,0.00021115,2]
[315481844,1709074231985,-157.02,0.00021276,2]
[315481846,1709074231995,-150.0,0.00021312,2]
[315481847,1709074232004,-905.75,0.00021322,2]
[315481848,1709074232014,-160.56433939,0.00021335,2]
[315481849,1709074232023,-410.84,0.000214,2]
[315481850,1709074232033,-52955.0,0.00021462,2]
[315481851,1709074232042,-226.96,0.00021496,2]
[315481852,1709074232052,-200.0,0.00021502,2]
[315481853,1709074232061,-200.0,0.00021503,2]
[315481854,1709074232071,-500.0,0.00021503,2]
[315481855,1709074232080,-500.0,0.00021503,2]
[315481856,1709074232090,-23900.0,0.00021503,2]
[315481857,1709074232100,-2751.0,0.00021503,2]
[315481858,1709074232109,-174.05623017,0.00021558,2]
[315481859,1709074232119,-162.49,0.00021653,2]
[315481860,1709074232130,-163.26,0.00021827,2]
[315481861,1709074232139,-6539.0,0.000219,2]
[315481862,1709074232148,-160.9,0.00021918,2]
[315481863,1709074232157,-186.52,0.00021918,2]
[315481864,1709074232166,-160.56433939,0.00021935,2]
[315481865,1709074232176,-205.0,0.00021952,2]
[315481866,1709074232185,-211.0,0.00022033,2]
[315481867,1709074232194,-1742.84031937,0.00022106,3]
[315481868,1709074232203,-500.0,0.00022106,3]
[315481869,1709074232213,-765.35411341,0.00022106,3]
[315481870,1709074232222,-246.51184643,0.00022106,3]
[315481871,1709074232232,-160.9,0.00022117,2]
[315481872,1709074232241,-160.9,0.00022316,2]
[315481873,1709074232251,-157.02,0.00022385,2]
[315481874,1709074232260,-160.9,0.00022516,2]
[315481875,1709074232270,-160.56433939,0.00022535,2]
[315481876,1709074232279,-1609.89,0.00022559,2]
[315481877,1709074232288,-96031.182,0.00022596,2]
[315481878,1709074232298,-345.16714882,0.00022644,6]
[315481879,1709074232307,-340.82868217,0.00022648,6]
[315481880,1709074232317,-340.82868217,0.0002265,6]
[315481881,1709074232326,-5749.10202875,0.00022654,6]
[315481882,1709074232335,-3748.45847143,0.00022672,6]
[315481883,1709074232344,-3748.45847143,0.00022674,6]
[315481884,1709074232354,-3748.45847143,0.00022678,6]
[315481885,1709074232364,-340.82868217,0.00022679,6]
[315481886,1709074232373,-5749.10202875,0.00022683,6]
[315481887,1709074232383,-340.82868217,0.00022683,6]
[315481888,1709074232392,-345.16714882,0.0002269,6]
[315481889,1709074232401,-5749.10202875,0.00022693,6]
[315481890,1709074232410,-345.16714882,0.00022694,6]
[315481891,1709074232420,-33712.0066,0.00022696,2]
[315481892,1709074232430,-1000.0,0.00022696,2]
[315481893,1709074232439,-6464.635,0.00022696,2]
[315481894,1709074232449,-1382.4807,0.00022696,2]
[315481895,1709074232458,-1287.90672673,0.00022696,2]
[315481896,1709074232468,-3748.45847143,0.00022697,6]
[315481897,1709074232478,-5749.10202875,0.00022699,6]
[315481898,1709074232487,-345.16714882,0.00022699,6]
[315481899,1709074232497,-160.9,0.00022715,2]
[315481900,1709074232507,-155.12,0.0002274,2]
[315481901,1709074232516,-800.0,0.00022767,2]
[315481902,1709074232526,-324.618168,0.00022781,2]
[315481903,1709074232535,-388.402767,0.00022781,2]
[315481904,1709074232546,-366.689353,0.00022781,2]
[315481905,1709074232556,-7947.1519,0.00022796,2]
[315481906,1709074232566,-100629.95301681,0.00022796,2]
[315481907,1709074232925,-17236.22233821,0.00022796,2]
[315481908,1709074232937,-24560.96377012,0.00022796,2]
[315481909,1709074232985,-102572.86087486,0.00022796,2]
[315481910,1709074232994,-500.0,0.00022796,2]
[315481911,1709074233186,-410.84,0.0002282,2]
[315481912,1709074233195,-254.22,0.00022831,2]
[315481913,1709074233204,-150.0,0.00022835,2]
[315481914,1709074233214,-150.0,0.0002284,2]
[315481915,1709074233223,-260.73618207,0.0002284,2]
[315481916,1709074233232,-177.9,0.0002284,2]
[315481917,1709074233241,-1031.79786954,0.00022868,2]
[315481927,1709074237769,-156.01,0.00022763,2]
[315481928,1709074237779,-256.10885714,0.00022868,2]
[315481929,1709074237788,-2578.83,0.00022896,2]
[315481930,1709074237798,-160.9,0.00022914,2]
[315481931,1709074237807,-1862.09278728,0.00022973,2]
[315481932,1709074237820,-6307.1299411,0.00022973,2]
[315481933,1709074237830,-6556.30749356,0.00022973,2]
[315481935,1709074237842,-1493.00982219,0.00022973,2]
[315481937,1709074237851,-12069.35571556,0.00022973,2]
[315481939,1709074237861,-27659.59313066,0.00022974,2]
[315481941,1709074237870,-320.82958815,0.00023,2]
[315481943,1709074237879,-707.0,0.00023,2]
[315481944,1709074237888,-707.0,0.00023,2]
[315481945,1709074237897,-997.0,0.00023,6]
[315481946,1709074237906,-997.0,0.00023,6]
[315481947,1709074237915,-2750.0,0.00023,3]
[315481948,1709074237925,-1287.90672668,0.0002304,2]
[315481949,1709074237935,-156.01,0.0002306,2]
[315481950,1709074237945,-324.618168,0.00023066,2]
[315481951,1709074237955,-388.402767,0.00023066,2]
[315481952,1709074237965,-366.689353,0.00023066,2]
[315481953,1709074237975,-160.9,0.00023113,2]
[315481954,1709074237987,-211.0,0.00023129,2]
[315481955,1709074237997,-160.56433939,0.00023135,2]
[315481956,1709074238006,-613.567,0.00023155,2]
[315481957,1709074238015,-217.0,0.00023155,2]
[315481958,1709074238024,-1258.0,0.00023155,2]
[315481959,1709074238034,-150.0,0.00023155,2]
[315481960,1709074238044,-1287.90672668,0.00023212,2]
[315481961,1709074238054,-520.0,0.00023222,2]
[315481962,1709074238066,-197.44456234,0.0002329,2]
[315481963,1709074238075,-6539.0,0.000233,2]
[315481964,1709074238084,-160.9,0.00023313,2]
[315481965,1709074238095,-324.618168,0.0002335,2]
[315481966,1709074238104,-388.402767,0.0002335,2]
[315481967,1709074238113,-366.689353,0.0002335,2]
[315481968,1709074238122,-156.01,0.00023356,2]
[315481969,1709074238132,-1287.90672668,0.00023384,2]
[315481970,1709074238141,-177.9,0.00023388,2]
[315481971,1709074238150,-5000.0,0.000234,2]
[315481972,1709074238159,-480.0,0.00023471,2]
[315481973,1709074238168,-5000.0,0.000235,2]
[315481974,1709074238177,-451.51054566,0.000235,2]
[315481975,1709074238194,-7806.48945434,0.000235,2]
[315481976,1709074238203,-157.24010006,0.000235,2]
[315481977,1709074238212,-157.24009996,0.000235,2]
[315481978,1709074238221,-157.24009996,0.000235,2]
[315481979,1709074238230,-157.24009996,0.000235,2]
[315481980,1709074238239,-157.24009996,0.000235,2]
[315481981,1709074238248,-157.24009996,0.000235,2]
[315481982,1709074238257,-157.24009996,0.000235,2]
[315481983,1709074238266,-157.24009996,0.000235,2]
[315481984,1709074238275,-157.24009996,0.000235,2]
[315481985,1709074238284,-157.24009996,0.000235,2]
[315481986,1709074238293,-160.9,0.00023512,2]
[315481987,1709074238302,-607.93740067,0.0002352,2]
[315481988,1709074238311,-157.24009996,0.00023527,2]
[315481989,1709074238320,-1287.90672668,0.00023556,2]
[315481990,1709074238329,-905.75,0.00023586,2]
[315481991,1709074238339,-5000.0,0.000236,2]
[315481992,1709074238349,-26173.97294743,0.000236,2]
[315481993,1709074238358,-607.93740063,0.00023614,2]
[315481994,1709074238367,-157.24009996,0.0002362,2]
[315481995,1709074238376,-324.618168,0.00023635,2]
[315481996,1709074238386,-388.402767,0.00023635,2]
[315481997,1709074238395,-366.689353,0.00023635,2]
[315481998,1709074238405,-254.22,0.00023639,2]
[315481999,1709074238414,-156.01,0.00023653,2]
[315482000,1709074238422,-413.26,0.0002369,2]
[315482001,1709074238431,-5000.0,0.000237,2]
[315482002,1709074238441,-607.93740063,0.00023708,2]
[315482003,1709074238450,-160.9,0.00023711,2]
[315482004,1709074238459,-157.24009996,0.00023713,2]
[315482005,1709074238468,-150.0,0.00023716,2]
[315482006,1709074238477,-1287.90672668,0.00023728,2]
[315482007,1709074238486,-172.60002999,0.00023735,2]
[315482008,1709074238495,-153.03112708,0.00023735,2]
[315482009,1709074238505,-160.56433939,0.00023735,2]
[315482010,1709074238516,-837.96052026,0.00023735,2]
[315482011,1709074238526,-201.42456216,0.00023735,2]
[315482012,1709074238535,-7299.52635003,0.00023735,2]
[315482013,1709074238544,-530.94192447,0.00023735,2]
[315482014,1709074238553,-382.08006221,0.00023735,2]
[315482015,1709074238562,-512.1327181,0.00023735,2]
[315482016,1709074238571,-183.34123831,0.00023735,2]
[315482017,1709074238580,-151.01109471,0.00023735,2]
[315482018,1709074238589,-5000.0,0.00023735,2]
[315482019,1709074238598,-10093.5443,0.00023735,2]
[315482020,1709074238611,-209.955066,0.00023741,2]
[315482021,1709074238620,-837.96052026,0.0002375,2]
[315482022,1709074238630,-153.78727849,0.00023759,2]
[315482023,1709074238639,-837.96052026,0.00023765,2]
[315482024,1709074238649,-837.96052026,0.0002378,2]
[315482025,1709074238659,-200.0,0.00023789,2]
[315482026,1709074238668,-800.0,0.00023789,2]
[315482027,1709074238678,-200.0,0.00023789,2]
[315482028,1709074238687,-500.0,0.00023789,2]
[315482029,1709074238699,-530.94192446,0.0002379,2]
[315482030,1709074238708,-837.96052026,0.00023795,2]
[315482031,1709074238717,-2806.70085132,0.00023798,2]
[315482032,1709074238726,-2806.70085127,0.00023798,2]
[315482033,1709074238735,-2806.70085127,0.00023798,2]
[315482034,1709074238745,-2806.70085127,0.00023798,2]
[315482035,1709074238755,-2806.70085127,0.00023798,2]
[315482036,1709074238765,-2806.70085127,0.00023798,2]
[315482037,1709074238774,-2806.70085127,0.00023798,2]
[315482038,1709074238783,-2806.70085127,0.00023798,2]
[315482039,1709074238792,-2806.70085127,0.00023798,2]
[315482040,1709074238802,-317.348157,0.00023798,2]
[315482041,1709074238811,-317.34815697,0.00023798,2]
[315482042,1709074238820,-317.34815697,0.00023798,2]
[315482043,1709074238829,-317.34815697,0.00023798,2]
[315482044,1709074238838,-317.34815697,0.00023798,2]
[315482045,1709074238847,-317.34815697,0.00023798,2]
[315482046,1709074238858,-317.34815697,0.00023798,2]
[315482047,1709074238867,-317.34815697,0.00023798,2]
[315482048,1709074238876,-317.34815697,0.00023798,2]
[315482049,1709074238887,-167.81005821,0.000238,2]
[315482050,1709074238896,-5536.98,0.000238,9]
[315482051,1709074238906,-800.0,0.000238,2]
[315482052,1709074238916,-2000.0,0.000238,2]
[315482053,1709074238926,-2000.0,0.000238,2]
[315482054,1709074238936,-4214.858084,0.000238,2]
[315482055,1709074238945,-2000.0,0.000238,2]
[315482056,1709074238954,-2000.0,0.000238,2]
[315482057,1709074238964,-607.93740063,0.00023802,2]
[315482058,1709074238973,-157.24009996,0.00023806,2]
[315482059,1709074238982,-200.0,0.00023806,2]
[315482060,1709074238992,-837.96052026,0.0002381,2]
[315482061,1709074239002,-7299.52635001,0.00023818,2]
[315482062,1709074239011,-512.13271809,0.00023818,2]
[315482063,1709074239021,-183.3412383,0.00023818,2]
[315482064,1709074239031,-837.96052026,0.00023825,2]
[315482065,1709074239040,-85648.40146783,0.00023835,4]
[315482066,1709074239050,-500.0,0.00023835,2]
[315482067,1709074239060,-340.80391852,0.00023835,2]
[315482068,1709074239069,-569.56645713,0.00023835,2]
[315482069,1709074239078,-500.0,0.00023835,2]
[315482070,1709074239087,-500.0,0.00023835,2]
[315482071,1709074239096,-500.0,0.00023835,2]
[315482072,1709074239106,-501.02808614,0.00023835,2]
[315482073,1709074239115,-500.86776568,0.00023835,2]
[315482074,1709074239125,-500.0,0.00023835,2]
[315482075,1709074239135,-509.41597936,0.00023835,2]
[315482076,1709074239144,-500.0,0.00023835,2]
[315482077,1709074239153,-505.07393754,0.00023835,2]
[315482078,1709074239162,-406.53690747,0.00023835,2]
[315482079,1709074239171,-500.71129162,0.00023835,2]
[315482080,1709074239180,-506.98812146,0.00023835,2]
[315482081,1709074239190,-500.0,0.00023835,2]
[315482082,1709074239199,-592.72569059,0.00023835,2]
[315482083,1709074239208,-500.0,0.00023835,2]
[315482084,1709074239218,-504.10834935,0.00023835,2]
[315482085,1709074239227,-526.04349061,0.00023835,2]
[315482086,1709074239236,-504.59215201,0.00023835,2]
[315482087,1709074239245,-503.07147096,0.00023835,2]
[315482088,1709074239255,-502.44810929,0.00023835,2]
[315482089,1709074239263,-500.92278647,0.00023835,2]
[315482090,1709074239273,-500.0,0.00023835,2]
[315482091,1709074239282,-502.20073709,0.00023835,2]
[315482092,1709074239291,-493.26940156,0.00023835,2]
[315482093,1709074239300,-500.0,0.00023835,2]
[315482094,1709074239309,-500.0,0.00023835,2]
[315482095,1709074239319,-534.25078538,0.00023835,2]
[315482096,1709074239328,-500.0,0.00023835,2]
[315482097,1709074239337,-511.33487896,0.00023835,2]
[315482098,1709074239542,-222.53974661,0.00023835,2]
[315482099,1709074239553,-500.0,0.00023835,2]
[315482100,1709074239562,-501.65376983,0.00023835,2]
[315482101,1709074239571,-500.0,0.00023835,2]
[315482102,1709074239580,-524.49483861,0.00023835,2]
[315482103,1709074239589,-353.70511161,0.00023835,2]
[315482104,1709074239599,-218.77977145,0.00023835,2]
[315482105,1709074239612,-703.44367662,0.00023835,2]
[315482106,1709074239621,-500.0,0.00023835,2]
[315482107,1709074239631,-500.0,0.00023835,2]
[315482108,1709074239640,-502.52844222,0.00023835,2]
[315482109,1709074239650,-502.78160246,0.00023835,2]
[315482110,1709074239659,-500.0,0.00023835,2]
[315482111,1709074239668,-500.0,0.00023835,2]
[315482112,1709074239677,-547.61668949,0.00023835,2]
[315482113,1709074239688,-505.26713582,0.00023835,2]
[315482114,1709074239698,-500.0,0.00023835,2]
[315482115,1709074239708,-500.0,0.00023835,2]
[315482116,1709074239717,-549.42540339,0.00023835,2]
[315482117,1709074239726,-503.62556632,0.00023835,2]
[315482118,1709074239735,-500.0,0.00023835,2]
[315482119,1709074239744,-500.0,0.00023835,2]
[315482120,1709074239754,-506.73271152,0.00023835,2]
[315482121,1709074239764,-405.18830065,0.00023835,2]
[315482122,1709074239774,-429.13867638,0.00023835,2]
[315482123,1709074239784,-500.0,0.00023835,2]
[315482124,1709074239794,-544.81600603,0.00023835,2]
[315482125,1709074239804,-2000.0,0.00023835,2]
[315482126,1709074239813,-200.0,0.00023835,2]
[315482127,1709074239822,-500.0,0.00023835,2]
[315482128,1709074239832,-500.0,0.00023835,2]
[315482129,1709074239845,-496.6998217,0.00023835,2]
[315482130,1709074239855,-502.8561167,0.00023835,2]
[315482131,1709074239864,-602.6700823,0.00023835,2]
[315482132,1709074239874,-502.24354722,0.00023835,2]
[315482133,1709074239885,-502.16843029,0.00023835,2]
[315482134,1709074239894,-539.93580657,0.00023835,2]
[315482135,1709074239903,-503.26276372,0.00023835,2]
[315482136,1709074239912,-513.03360762,0.00023835,2]
[315482137,1709074239922,-500.0,0.00023835,2]
[315482138,1709074239932,-500.0,0.00023835,2]
[315482139,1709074239942,-507.53678305,0.00023835,2]
[315482140,1709074239951,-276.01005492,0.00023835,2]
[315482141,1709074239961,-358.17609613,0.00023835,2]
[315482142,1709074239970,-500.0,0.00023835,2]
[315482143,1709074239981,-500.0,0.00023835,2]
[315482144,1709074239991,-500.0,0.00023835,2]
[315482145,1709074240000,-500.0,0.00023835,2]
[315482146,1709074240010,-500.0,0.00023835,2]
[315482147,1709074240020,-500.0,0.00023835,2]
[315482148,1709074240029,-587.50203698,0.00023835,2]
[315482149,1709074240039,-500.0,0.00023835,2]
[315482150,1709074240049,-500.0,0.00023835,2]
[315482151,1709074240058,-500.0,0.00023835,2]
[315482152,1709074240068,-500.0,0.00023835,2]
[315482153,1709074240077,-500.0,0.00023835,2]
[315482154,1709074240086,-500.0,0.00023835,2]
[315482155,1709074240095,-500.0,0.00023835,2]
[315482157,1709074240105,-500.0,0.00023835,2]
[315482158,1709074240118,-500.0,0.00023835,2]
[315482159,1709074240127,-500.0,0.00023835,2]
[315482160,1709074240137,-500.0,0.00023835,2]
[315482161,1709074240146,-500.0,0.00023835,2]
[315482162,1709074240156,-500.0,0.00023835,2]
[315482163,1709074240166,-500.0,0.00023835,2]
[315482164,1709074240175,-504.37698,0.00023835,2]
[315482165,1709074240184,-504.07601068,0.00023835,2]
[315482166,1709074240194,-500.0,0.00023835,2]
[315482167,1709074240203,-500.0,0.00023835,2]
[315482168,1709074240213,-500.0,0.00023835,2]
[315482169,1709074240222,-500.0,0.00023835,2]
[315482170,1709074240231,-513.1591582,0.00023835,2]
[315482171,1709074240240,-503.87754222,0.00023835,2]
[315482172,1709074240250,-500.0,0.00023835,2]
[315482173,1709074240259,-500.0,0.00023835,2]
[315482174,1709074240269,-500.0,0.00023835,2]
[315482175,1709074240279,-511.88154928,0.00023835,2]
[315482176,1709074240289,-500.0,0.00023835,2]
[315482177,1709074240299,-500.0,0.00023835,2]
[315482178,1709074240310,-500.0,0.00023835,2]
[315482179,1709074240320,-502.76957928,0.00023835,2]
[315482180,1709074240330,-500.0,0.00023835,2]
[315482181,1709074240339,-502.96248457,0.00023835,2]
[315482182,1709074240348,-210.94441513,0.00023835,2]
[315482183,1709074240358,-504.45815849,0.00023835,2]
[315482184,1709074240367,-506.67641606,0.00023835,2]
[315482185,1709074240376,-500.0,0.00023835,2]
[315482186,1709074240386,-500.0,0.00023835,2]
[315482187,1709074240398,-500.0,0.00023835,2]
[315482188,1709074240408,-500.0,0.00023835,2]
[315482189,1709074240417,-500.0,0.00023835,2]
[315482190,1709074240426,-500.0,0.00023835,2]
[315482191,1709074240436,-500.0,0.00023835,2]
[315482192,1709074240445,-500.0,0.00023835,2]
[315482193,1709074240454,-500.0,0.00023835,2]
[315482194,1709074240464,-506.14080975,0.00023835,2]
[315482195,1709074240473,-500.0,0.00023835,2]
[315482196,1709074240482,-500.0,0.00023835,2]
[315482197,1709074240491,-508.45269225,0.00023835,2]
[315482198,1709074240500,-500.0,0.00023835,2]
[315482199,1709074240510,-500.0,0.00023835,2]
[315482200,1709074240519,-500.0,0.00023835,2]
[315482201,1709074240528,-500.0,0.00023835,2]
[315482202,1709074240538,-500.0,0.00023835,2]
[315482203,1709074240547,-572.76480413,0.00023835,2]
[315482204,1709074240557,-384.27487361,0.00023835,2]
[315482205,1709074240566,-500.0,0.00023835,2]
[315482206,1709074240576,-504.08960664,0.00023835,2]
[315482207,1709074240586,-177.62519421,0.00023835,2]
[315482208,1709074240596,-502.9752614,0.00023835,2]
[315482209,1709074240605,-505.32715245,0.00023835,2]
[315482210,1709074240616,-504.65199479,0.00023835,2]
[315482211,1709074240627,-509.59457177,0.00023835,2]
[315482212,1709074240636,-442.39272935,0.00023835,2]
[315482213,1709074240646,-500.0,0.00023835,2]
[315482214,1709074240656,-500.46375702,0.00023835,2]
[315482215,1709074240666,-156.45980615,0.00023835,2]
[315482216,1709074240676,-500.0,0.00023835,2]
[315482217,1709074240686,-500.0,0.00023835,2]
[315482218,1709074240697,-500.0,0.00023835,2]
[315482219,1709074240707,-500.0,0.00023835,2]
[315482220,1709074240717,-448.74067261,0.00023835,2]
[315482221,1709074240728,-496.92245396,0.00023835,2]
[315482222,1709074240738,-511.0840972,0.00023835,2]
[315482223,1709074240748,-500.0,0.00023835,2]
[315482224,1709074240759,-500.0,0.00023835,2]
[315482225,1709074240769,-500.0,0.00023835,2]
[315482226,1709074240780,-500.0,0.00023835,2]
[315482227,1709074240792,-500.0,0.00023835,2]
[315482228,1709074240803,-500.0,0.00023835,2]
[315482229,1709074240814,-500.0,0.00023835,2]
[315482230,1709074240825,-500.0,0.00023835,2]
[315482231,1709074240836,-500.0,0.00023835,2]
[315482232,1709074240847,-500.0,0.00023835,2]
[315482233,1709074240859,-500.0,0.00023835,2]
[315482234,1709074240869,-501.25319984,0.00023835,2]
[315482235,1709074240879,-500.0,0.00023835,2]
[315482236,1709074240891,-612.22,0.00023835,2]
[315482237,1709074240902,-500.0,0.00023835,2]
[315482238,1709074240912,-213.96186095,0.00023835,2]
[315482239,1709074240923,-500.0,0.00023835,2]
[315482240,1709074240933,-500.0,0.00023835,2]
[315482241,1709074240943,-500.0,0.00023835,2]
[315482242,1709074240953,-500.0,0.00023835,2]
[315482243,1709074240964,-500.0,0.00023835,2]
[315482244,1709074240973,-500.0,0.00023835,2]
[315482245,1709074240984,-500.0,0.00023835,2]
[315482246,1709074240994,-334.83558032,0.00023835,2]
[315482247,1709074241004,-500.0,0.00023835,2]
[315482248,1709074241016,-489.70729465,0.00023835,2]
[315482249,1709074241026,-325.04688899,0.00023835,2]
[315482250,1709074241036,-500.0,0.00023835,2]
[315482251,1709074241046,-500.0,0.00023835,2]
[315482252,1709074241056,-500.0,0.00023835,2]
[315482253,1709074241066,-500.0,0.00023835,2]
[315482254,1709074241076,-500.0,0.00023835,2]
[315482255,1709074241085,-500.0,0.00023835,2]
[315482257,1709074241095,-280.33,0.00023835,2]
[315482258,1709074241105,-500.0,0.00023835,2]
[315482259,1709074241117,-500.0,0.00023835,2]
[315482260,1709074241127,-500.0,0.00023835,2]
[315482261,1709074241139,-501.88705733,0.00023835,2]
[315482262,1709074241149,-500.0,0.00023835,2]
[315482263,1709074241160,-500.0,0.00023835,2]
[315482265,1709074241170,-500.0,0.00023835,2]
[315482268,1709074241179,-296.07204202,0.00023835,2]
[315482271,1709074241189,-500.0,0.00023835,2]
[315482273,1709074241199,-500.0,0.00023835,2]
[315482276,1709074241209,-500.0,0.00023835,2]
[315482279,1709074241219,-500.0,0.00023835,2]
[315482282,1709074241229,-500.0,0.00023835,2]
[315482284,1709074241238,-500.0,0.00023835,2]
[315482287,1709074241248,-500.0,0.00023835,2]
[315482289,1709074241257,-500.0,0.00023835,2]
[315482291,1709074241267,-500.0,0.00023835,2]
[315482293,1709074241276,-571.09016362,0.00023835,2]
[315482295,1709074241286,-500.0,0.00023835,2]
[315482297,1709074241295,-500.0,0.00023835,2]
[315482300,1709074241306,-559.98548955,0.00023835,2]
[315482302,1709074241316,-500.0,0.00023835,2]
[315482304,1709074241326,-394.94809781,0.00023835,2]
[315482306,1709074241337,-278.57300256,0.00023835,2]
[315482308,1709074241347,-500.0,0.00023835,2]
[315482310,1709074241356,-500.0,0.00023835,2]
[315482312,1709074241366,-500.0,0.00023835,2]
[315482314,1709074241376,-271.40350917,0.00023835,2]
[315482316,1709074241387,-364.44836885,0.00023835,2]
[315482318,1709074241397,-529.9064836,0.00023835,2]
[315482320,1709074241407,-500.0,0.00023835,2]
[315482322,1709074241417,-500.0,0.00023835,2]
[315482324,1709074241426,-502.90680677,0.00023835,2]
[315482326,1709074241436,-500.0,0.00023835,2]
[315482328,1709074241445,-524.22645437,0.00023835,2]
[315482330,1709074241455,-500.0,0.00023835,2]